fUSD/lending_fUSD_20240821
["ID","MTS","AMOUNT","RATE_DAILY","PERIOD"]
[335492067,1724271066256,-500.0,0.0001589,2]
[335492068,1724271066265,-1874.41,0.0001589,2]
[335492069,1724271066275,-843.59,0.0001589,2]
[335492070,1724271066286,-572.46,0.0001589,2]
[335492071,1724271066296,-500.0,0.0001589,2]
[335492072,1724271066306,-1812.21,0.0001589,2]
[335492073,1724271066318,-1297.86,0.0001589,2]
[335492074,1724271066327,-8174.27,0.0001589,2]
[335492075,1724271066336,-778.72,0.0001589,2]
[335492076,1724271066347,-574.93,0.0001589,2]
[335492077,1724271066356,-2107.46,0.0001589,2]
[335492078,1724271066367,-768.88,0.0001589,2]
[335492079,1724271066378,-2739.14,0.0001589,2]
[335492080,1724271066387,-23349.98,0.0001589,2]
[335492081,1724271066397,-1463.51,0.0001589,2]
[335492082,1724271066406,-500.0,0.0001589,2]
[335492083,1724271066416,-1339.48,0.0001589,2]
[335492084,1724271066426,-3622.41,0.0001589,2]
[335492085,1724271066436,-1649.78,0.0001589,2]
[335492086,1724271066445,-1449.44,0.0001589,2]
[335492087,1724271066455,-11751.7,0.0001589,2]
[335492088,1724271066465,-1388.58,0.0001589,2]
[335492089,1724271066474,-905.44,0.0001589,2]
[335492090,1724271066484,-864.58,0.0001589,2]
[335492091,1724271066493,-3327.77,0.0001589,2]
[335492092,1724271066503,-1453.56,0.0001589,2]
[335492093,1724271066512,-500.0,0.0001589,2]
[335492094,1724271066523,-2863.74,0.0001589,2]
[335492095,1724271066533,-501.06,0.0001589,2]
[335492096,1724271066543,-1806.38,0.0001589,2]
[335492097,1724271066553,-500.0,0.0001589,2]
[335492098,1724271066563,-4240.59,0.0001589,2]
[335492099,1724271066572,-888.38,0.0001589,2]
[335492100,1724271066582,-500.0,0.0001589,2]
[335492101,1724271066593,-1356.0,0.0001589,2]
[335492102,1724271066603,-956.25,0.0001589,2]
[335492103,1724271066613,-2136.97,0.0001589,2]
[335492104,1724271066622,-598.4,0.0001589,2]
[335492105,1724271066631,-16675.59,0.0001589,2]
[335492106,1724271066641,-2045.67,0.0001589,2]
[335492107,1724271066650,-180.528769,0.00015926,2]
[335492108,1724271066659,-151.045862,0.00015926,2]
[335492109,1724271066668,-180.528769,0.00015926,2]
[335492110,1724271066678,-150.440641,0.00015926,2]
[335492111,1724271066687,-150.440642,0.00015926,2]
[335492112,1724271066697,-201.0,0.0001594,2]
[335492113,1724271066707,-1000.0,0.00016,2]
[335492114,1724271066716,-30645.69513117,0.00016,2]
[335492115,1724271066725,-1000.0,0.00016,2]
[335492116,1724271066734,-400.30367444,0.00016,3]
[335492117,1724271066743,-1000.0,0.00016,2]
[335492118,1724271066752,-1000.0,0.00016,2]
[335492119,1724271066762,-1000.0,0.00016,2]
[335492120,1724271066771,-1000.0,0.00016,2]
[335492121,1724271066781,-1000.0,0.00016,2]
[335492122,1724271066790,-1000.0,0.00016,2]
[335492123,1724271066800,-1000.0,0.00016,2]
[335492124,1724271066809,-1200.0,0.00016,2]
[335492125,1724271066819,-200.0,0.0001604,2]
[335492126,1724271066829,-200.0,0.0001604,2]
[335492127,1724271066839,-794.0,0.00016046,2]
[335492128,1724271066851,-201.0,0.0001608,2]
[335492129,1724271066863,-4396.83,0.00016163,2]
[335492130,1724271066873,-500.0,0.00016164,2]
[335492131,1724271066883,-500.0,0.00016164,2]
[335492132,1724271066893,-500.0,0.00016164,2]
[335492133,1724271066902,-500.0,0.00016164,2]
[335492134,1724271066912,-849.75,0.00016164,2]
[335492135,1724271066922,-500.0,0.00016164,2]
[335492136,1724271066932,-553.65,0.00016164,2]
[335492137,1724271066943,-500.0,0.00016164,2]
[335492138,1724271066953,-500.0,0.00016164,2]
[335492139,1724271066962,-208.4969851,0.00016164,2]
[335492140,1724271066973,-2476.81,0.00016164,2]
[335492141,1724271066982,-500.0,0.00016164,2]
[335492142,1724271066991,-500.0,0.00016164,2]
[335492143,1724271067002,-819.63,0.00016164,2]
[335492144,1724271067012,-500.0,0.00016164,2]
[335492145,1724271067022,-627.64090878,0.00016164,2]
[335492146,1724271067032,-953.0,0.00016164,2]
[335492147,1724271067041,-553.4,0.00016164,2]
[335492148,1724271067051,-2372.5,0.00016164,2]
[335492149,1724271067060,-1887.65,0.00016164,2]
[335492150,1724271067070,-500.0,0.00016164,2]
[335492151,1724271067079,-500.0,0.00016164,2]
[335492152,1724271067092,-838.39,0.00016164,2]
[335492153,1724271067102,-500.0,0.00016164,2]
[335492154,1724271067111,-942.96,0.00016164,2]
[335492155,1724271067121,-500.0,0.00016164,2]
[335492156,1724271067130,-500.0,0.00016164,2]
[335492157,1724271067139,-2031.17,0.00016164,2]
[335492158,1724271067149,-1086.02,0.00016164,2]
[335492159,1724271067159,-500.0,0.00016164,2]
[335492160,1724271067168,-500.0,0.00016164,2]
[335492161,1724271067178,-500.0,0.00016164,2]
[335492162,1724271067188,-500.0,0.00016164,2]
[335492163,1724271067198,-1406.4,0.00016164,2]
[335492164,1724271067208,-2109.32,0.00016164,2]
[335492165,1724271067217,-506.39,0.00016164,2]
[335492166,1724271067227,-500.0,0.00016164,2]
[335492167,1724271067237,-500.0,0.00016164,2]
[335492168,1724271067247,-500.0,0.00016164,2]
[335492169,1724271067256,-633.06,0.00016164,2]
[335492170,1724271067266,-2082.07,0.00016164,2]
[335492171,1724271067275,-500.0,0.00016164,2]
[335492172,1724271067289,-1272.91,0.00016164,2]
[335492173,1724271067298,-877.63,0.00016164,2]
[335492174,1724271067308,-2827.83,0.00016164,2]
[335492175,1724271067320,-679.05,0.00016164,2]
[335492176,1724271067330,-2900.23,0.00016164,2]
[335492177,1724271067342,-3837.38,0.00016164,2]
[335492178,1724271067352,-1312.2,0.00016164,2]
[335492179,1724271067362,-5651.96,0.00016164,2]
[335492180,1724271067372,-2385.71,0.00016164,2]
[335492181,1724271067381,-2073.03,0.00016164,2]
[335492182,1724271067392,-727.0,0.00016164,2]
[335492183,1724271067402,-4428.25,0.00016164,2]
[335492184,1724271067413,-4040.23,0.00016164,2]
[335492185,1724271067424,-500.0,0.00016164,2]
[335492186,1724271067434,-500.0,0.00016164,2]
[335492187,1724271067443,-1758.36,0.00016164,2]
[335492188,1724271067452,-8908.85,0.00016164,2]
[335492189,1724271067462,-2776.63,0.00016164,2]
[335492190,1724271067472,-1849.24,0.00016164,2]
[335492191,1724271067482,-1976.14,0.00016164,2]
[335492192,1724271067491,-4975.15,0.00016164,2]
[335492193,1724271067500,-2893.92,0.00016164,2]
[335492194,1724271067510,-3907.53,0.00016164,2]
[335492195,1724271067519,-652.92,0.00016164,2]
[335492196,1724271067529,-8204.23,0.00016164,2]
[335492197,1724271067538,-715.41,0.00016164,2]
[335492198,1724271067548,-804.61,0.00016164,2]
[335492199,1724271067557,-3869.94,0.00016164,2]
[335492200,1724271067567,-500.0,0.00016164,2]
[335492201,1724271067577,-500.0,0.00016164,2]
[335492202,1724271067587,-560.54,0.00016164,2]
[335492203,1724271067598,-13097.07,0.00016164,2]
[335492204,1724271067607,-569.23,0.00016164,2]
[335492205,1724271067617,-500.0,0.00016164,2]
[335492206,1724271067626,-500.0,0.00016164,2]
[335492207,1724271067635,-5246.21,0.00016164,2]
[335492208,1724271067644,-508.22,0.00016164,2]
[335492209,1724271067653,-579.28,0.00016164,2]
[335492210,1724271067664,-770.64,0.00016164,2]
[335492211,1724271067673,-540.92,0.00016164,2]
[335492212,1724271067683,-1221.8,0.00016164,2]
[335492213,1724271067693,-592.34,0.00016164,2]
[335492214,1724271067702,-516.26,0.00016164,2]
[335492215,1724271067712,-500.0,0.00016164,2]
[335492216,1724271067721,-500.0,0.00016164,2]
[335492217,1724271067730,-1609.75,0.00016164,2]
[335492218,1724271067739,-1751.79,0.00016164,2]
[335492219,1724271067750,-500.0,0.00016164,2]
[335492220,1724271067759,-2912.27,0.00016164,2]
[335492221,1724271067768,-4271.33,0.00016164,2]
[335492222,1724271067778,-892.56,0.00016164,2]
[335492223,1724271067787,-265.45837149,0.00016164,2]
[335492224,1724271067796,-1349.34,0.00016164,2]
[335492225,1724271067805,-1872.48,0.00016164,2]
[335492226,1724271067815,-500.0,0.00016164,2]
[335492227,1724271067824,-1874.41,0.00016164,2]
[335492228,1724271067833,-843.59,0.00016164,2]
[335492229,1724271067845,-572.46,0.00016164,2]
[335492230,1724271067855,-500.0,0.00016164,2]
[335492231,1724271067865,-1812.21,0.00016164,2]
[335492232,1724271067874,-1297.86,0.00016164,2]
[335492233,1724271067884,-8174.27,0.00016164,2]
[335492234,1724271067893,-778.72,0.00016164,2]
[335492235,1724271067903,-574.93,0.00016164,2]
[335492236,1724271067912,-2107.46,0.00016164,2]
[335492237,1724271067922,-768.88,0.00016164,2]
[335492238,1724271067931,-2739.14,0.00016164,2]
[335492239,1724271067940,-23349.98,0.00016164,2]
[335492240,1724271067949,-1463.51,0.00016164,2]
[335492241,1724271067958,-500.0,0.00016164,2]
[335492242,1724271067967,-1339.48,0.00016164,2]
[335492243,1724271067976,-3622.41,0.00016164,2]
[335492244,1724271067985,-1649.78,0.00016164,2]
[335492245,1724271067994,-1449.44,0.00016164,2]
[335492246,1724271068004,-11751.7,0.00016164,2]
[335492247,1724271068013,-1388.58,0.00016164,2]
[335492248,1724271068022,-905.44,0.00016164,2]
[335492249,1724271068031,-864.58,0.00016164,2]
[335492250,1724271068040,-3327.77,0.00016164,2]
[335492251,1724271068050,-1453.56,0.00016164,2]
[335492252,1724271068058,-500.0,0.00016164,2]
[335492253,1724271068068,-2863.74,0.00016164,2]
[335492254,1724271068077,-501.06,0.00016164,2]
[335492255,1724271068086,-1806.38,0.00016164,2]
[335492256,1724271068098,-500.0,0.00016164,2]
[335492257,1724271068107,-4240.59,0.00016164,2]
[335492258,1724271068116,-888.38,0.00016164,2]
[335492259,1724271068126,-1356.0,0.00016164,2]
[335492260,1724271068135,-956.25,0.00016164,2]
[335492261,1724271068145,-2136.97,0.00016164,2]
[335492262,1724271068154,-598.4,0.00016164,2]
[335492263,1724271068257,-16675.59,0.00016164,2]
[335492264,1724271068267,-2045.67,0.00016164,2]
[335492265,1724271068276,-265.0,0.0001617,2]
[335492266,1724271068288,-201.0,0.0001622,2]
[335492267,1724271068297,-200.0,0.0001626,2]
[335492268,1724271068307,-200.0,0.0001627,2]
[335492269,1724271068316,-201.0,0.0001636,2]
[335492270,1724271068326,-150.0,0.000164,4]
[335492271,1724271068335,-4396.83,0.00016437,2]
[335492272,1724271068347,-438.30021,0.00016438,2]
[335492273,1724271068357,-438.30021,0.00016438,2]
[335492274,1724271068366,-438.30021,0.00016438,2]
[335492275,1724271068376,-438.30021,0.00016438,2]
[335492276,1724271068385,-438.30021,0.00016438,2]
[335492277,1724271068395,-500.0,0.00016438,2]
[335492278,1724271068404,-500.0,0.00016438,2]
[335492279,1724271068414,-500.0,0.00016438,2]
[335492280,1724271068424,-849.75,0.00016438,2]
[335492281,1724271068433,-500.0,0.00016438,2]
[335492282,1724271068443,-553.65,0.00016438,2]
[335492283,1724271068452,-349.4772915,0.00016438,2]
[335492284,1724271068461,-500.0,0.00016438,2]
[335492285,1724271068470,-2476.81,0.00016438,2]
[335492286,1724271068480,-500.0,0.00016438,2]
[335492287,1724271068489,-500.0,0.00016438,2]
[335492288,1724271068498,-183.688516,0.00016438,2]
[335492289,1724271068507,-204.036451,0.00016438,2]
[335492290,1724271068516,-159.800663,0.00016438,2]
[335492291,1724271068525,-819.63,0.00016438,2]
[335492292,1724271068534,-150.098844,0.00016438,2]
[335492293,1724271068543,-150.098844,0.00016438,2]
[335492294,1724271068553,-150.098844,0.00016438,2]
[335492295,1724271068562,-150.098844,0.00016438,2]
[335492296,1724271068572,-155.635153,0.00016438,2]
[335492297,1724271068581,-155.635153,0.00016438,2]
[335492298,1724271068593,-155.635153,0.00016438,2]
[335492299,1724271068602,-500.0,0.00016438,2]
[335492300,1724271068611,-953.0,0.00016438,2]
[335492301,1724271068620,-553.4,0.00016438,2]
[335492302,1724271068629,-2372.5,0.00016438,2]
[335492303,1724271068638,-1887.65,0.00016438,2]
[335492304,1724271068647,-500.0,0.00016438,2]
[335492305,1724271068656,-500.0,0.00016438,2]
[335492306,1724271068665,-838.39,0.00016438,2]
[335492307,1724271068674,-500.0,0.00016438,2]
[335492308,1724271068683,-942.96,0.00016438,2]
[335492309,1724271068693,-500.0,0.00016438,2]
[335492310,1724271068702,-500.0,0.00016438,2]
[335492311,1724271068713,-2031.17,0.00016438,2]
[335492312,1724271068722,-1086.02,0.00016438,2]
[335492313,1724271068731,-501.14992701,0.00016438,2]
[335492314,1724271068740,-500.0,0.00016438,2]
[335492315,1724271068749,-500.0,0.00016438,2]
[335492316,1724271068759,-500.0,0.00016438,2]
[335492317,1724271068769,-1406.4,0.00016438,2]
[335492318,1724271068778,-2109.32,0.00016438,2]
[335492319,1724271068787,-506.39,0.00016438,2]
[335492320,1724271068796,-500.0,0.00016438,2]
[335492321,1724271068805,-500.0,0.00016438,2]
[335492322,1724271068814,-500.0,0.00016438,2]
[335492323,1724271068823,-633.06,0.00016438,2]
[335492324,1724271068832,-2082.07,0.00016438,2]
[335492325,1724271068842,-500.0,0.00016438,2]
[335492326,1724271068852,-1272.91,0.00016438,2]
[335492327,1724271068861,-877.63,0.00016438,2]
[335492328,1724271068870,-2827.83,0.00016438,2]
[335492329,1724271068878,-679.05,0.00016438,2]
[335492330,1724271068887,-2900.23,0.00016438,2]
[335492331,1724271068897,-3837.38,0.00016438,2]
[335492332,1724271068906,-1312.2,0.00016438,2]
[335492333,1724271068915,-5651.96,0.00016438,2]
[335492334,1724271068924,-2385.71,0.00016438,2]
[335492335,1724271068933,-2073.03,0.00016438,2]
[335492336,1724271068942,-727.0,0.00016438,2]
[335492337,1724271068951,-4428.25,0.00016438,2]
[335492338,1724271068962,-4040.23,0.00016438,2]
[335492339,1724271068971,-500.0,0.00016438,2]
[335492340,1724271068981,-500.0,0.00016438,2]
[335492341,1724271068990,-1758.36,0.00016438,2]
[335492342,1724271069000,-8908.85,0.00016438,2]
[335492343,1724271069009,-2776.63,0.00016438,2]
[335492344,1724271069019,-1849.24,0.00016438,2]
[335492345,1724271069029,-1976.14,0.00016438,2]
[335492346,1724271069038,-4975.15,0.00016438,2]
[335492347,1724271069048,-2893.92,0.00016438,2]
[335492348,1724271069058,-3907.53,0.00016438,2]
[335492349,1724271069067,-652.92,0.00016438,2]
[335492350,1724271069076,-8204.23,0.00016438,2]
[335492351,1724271069086,-715.41,0.00016438,2]
[335492352,1724271069101,-804.61,0.00016438,2]
[335492353,1724271069112,-3869.94,0.00016438,2]
[335492354,1724271069122,-342.73842534,0.00016438,2]
[335492355,1724271069132,-500.0,0.00016438,2]
[335492356,1724271069142,-560.54,0.00016438,2]
[335492357,1724271069151,-13097.07,0.00016438,2]
[335492358,1724271069160,-569.23,0.00016438,2]
[335492359,1724271069169,-500.0,0.00016438,2]
[335492360,1724271069179,-500.0,0.00016438,2]
[335492361,1724271069188,-5246.21,0.00016438,2]
[335492362,1724271069197,-508.22,0.00016438,2]
[335492363,1724271069206,-579.28,0.00016438,2]
[335492364,1724271069215,-770.64,0.00016438,2]
[335492365,1724271069224,-540.92,0.00016438,2]
[335492366,1724271069233,-1221.8,0.00016438,2]
[335492367,1724271069242,-592.34,0.00016438,2]
[335492368,1724271069251,-516.26,0.00016438,2]
[335492369,1724271069260,-500.0,0.00016438,2]
[335492370,1724271069272,-500.0,0.00016438,2]
[335492371,1724271069282,-1609.75,0.00016438,2]
[335492372,1724271069291,-1751.79,0.00016438,2]
[335492373,1724271069300,-500.0,0.00016438,2]
[335492374,1724271069309,-2912.27,0.00016438,2]
[335492375,1724271069319,-4271.33,0.00016438,2]
[335492376,1724271069328,-892.56,0.00016438,2]
[335492377,1724271069338,-1349.34,0.00016438,2]
[335492378,1724271069352,-1872.48,0.00016438,2]
[335492379,1724271069362,-185.04,0.00016438,2]
[335492380,1724271069371,-1874.41,0.00016438,2]
[335492381,1724271069380,-843.59,0.00016438,2]
[335492382,1724271069389,-572.46,0.00016438,2]
[335492383,1724271069399,-500.0,0.00016438,2]
[335492384,1724271069409,-1812.21,0.00016438,2]
[335492385,1724271069418,-1297.86,0.00016438,2]
[335492386,1724271069427,-8174.27,0.00016438,2]
[335492387,1724271069436,-778.72,0.00016438,2]
[335492388,1724271069445,-574.93,0.00016438,2]
[335492389,1724271069454,-2107.46,0.00016438,2]
[335492390,1724271069464,-768.88,0.00016438,2]
[335492391,1724271069473,-2739.14,0.00016438,2]
[335492392,1724271069482,-23349.98,0.00016438,2]
[335492393,1724271069491,-1463.51,0.00016438,2]
[335492394,1724271069500,-500.0,0.00016438,2]
[335492395,1724271069510,-1339.48,0.00016438,2]
[335492396,1724271069520,-3622.41,0.00016438,2]
[335492397,1724271069529,-1649.78,0.00016438,2]
[335492398,1724271069538,-1449.44,0.00016438,2]
[335492399,1724271069548,-11751.7,0.00016438,2]
[335492400,1724271069557,-1388.58,0.00016438,2]
[335492401,1724271069566,-905.44,0.00016438,2]
[335492402,1724271069576,-864.58,0.00016438,2]
[335492403,1724271069586,-3327.77,0.00016438,2]
[335492404,1724271069598,-1453.56,0.00016438,2]
[335492405,1724271069607,-500.0,0.00016438,2]
[335492406,1724271069617,-2863.74,0.00016438,2]
[335492407,1724271069626,-501.06,0.00016438,2]
[335492408,1724271069636,-1806.38,0.00016438,2]
[335492409,1724271069646,-500.0,0.00016438,2]
[335492410,1724271069656,-4240.59,0.00016438,2]
[335492411,1724271069667,-888.38,0.00016438,2]
[335492412,1724271069676,-1356.0,0.00016438,2]
[335492413,1724271069687,-956.25,0.00016438,2]
[335492414,1724271069698,-2136.97,0.00016438,2]
[335492415,1724271069707,-598.4,0.00016438,2]
[335492416,1724271069716,-16675.59,0.00016438,2]
[335492417,1724271069725,-2045.67,0.00016438,2]
[335492418,1724271069734,-500.0,0.00016438,2]
[335492419,1724271069742,-1000.0,0.00016438,2]
[335492420,1724271069751,-150.0,0.00016438,2]
[335492421,1724271069760,-438.30021,0.00016478,5]
[335492422,1724271069769,-150.098844,0.00016478,5]
[335492423,1724271069778,-155.635153,0.00016478,5]
[335492424,1724271069787,-200.0,0.0001648,2]
[335492425,1724271069796,-200.0,0.0001648,2]
[335492426,1724271069806,-438.30021,0.00016483,5]
[335492427,1724271069815,-150.098844,0.00016483,5]
[335492428,1724271069824,-155.635153,0.00016483,5]
[335492429,1724271069835,-438.30021,0.00016487,5]
[335492430,1724271069851,-438.30021,0.00016487,5]
[335492431,1724271069860,-150.098844,0.00016487,5]
[335492432,1724271069869,-155.635153,0.00016487,5]
[335492433,1724271069879,-390768.22828833,0.00016488,10]
[335492434,1724271069887,-150.234412,0.00016488,10]
[335492435,1724271069897,-183.688516,0.00016488,5]
[335492436,1724271069906,-150.098844,0.00016488,5]
[335492437,1724271069915,-150.098844,0.00016488,5]
[335492438,1724271069924,-150.098844,0.00016488,5]
[335492439,1724271069933,-155.635153,0.00016488,5]
[335492440,1724271069942,-155.635153,0.00016488,5]
[335492441,1724271069951,-438.30021,0.00016489,5]
[335492442,1724271069960,-438.30021,0.00016489,5]
[335492443,1724271069969,-438.30021,0.00016489,5]
[335492444,1724271070069,-150.098844,0.00016489,5]
[335492445,1724271070079,-150.098844,0.00016489,5]
[335492446,1724271070088,-155.635153,0.00016489,5]
[335492447,1724271070105,-155.635153,0.00016489,5]
[335492448,1724271070114,-201.0,0.0001649,2]
[335492449,1724271070123,-201.0,0.0001649,2]
[335492450,1724271070132,-221.0,0.0001649,2]
[335492451,1724271070141,-150.098844,0.00016496,5]
[335492452,1724271070150,-150.098844,0.00016497,5]
[335492453,1724271070159,-155.635153,0.00016497,5]
[335492454,1724271070168,-155.635153,0.00016497,5]
[335492455,1724271070177,-150.098844,0.00016498,5]
[335492456,1724271070185,-265.0,0.0001651,2]
[335492457,1724271070194,-4396.83,0.00016711,5]
[335492458,1724271070204,-500.0,0.00016712,5]
[335492459,1724271070213,-500.0,0.00016712,5]
[335492460,1724271070222,-500.0,0.00016712,5]
[335492461,1724271070231,-849.75,0.00016712,5]
[335492462,1724271070240,-500.0,0.00016712,5]
[335492463,1724271070249,-553.65,0.00016712,5]
[335492464,1724271070258,-500.0,0.00016712,5]
[335492465,1724271070267,-2476.81,0.00016712,5]
[335492466,1724271070277,-500.0,0.00016712,5]
[335492467,1724271070290,-500.0,0.00016712,5]
[335492468,1724271070300,-819.63,0.00016712,5]
[335492469,1724271070309,-500.0,0.00016712,5]
[335492470,1724271070319,-953.0,0.00016712,5]
[335492471,1724271070329,-553.4,0.00016712,5]
[335492472,1724271070339,-2372.5,0.00016712,5]
[335492473,1724271070351,-1887.65,0.00016712,5]
[335492474,1724271070362,-500.0,0.00016712,5]
[335492475,1724271070372,-500.0,0.00016712,5]
[335492476,1724271070381,-838.39,0.00016712,5]
[335492477,1724271070390,-500.0,0.00016712,5]
[335492478,1724271070400,-942.96,0.00016712,5]
[335492479,1724271070409,-500.0,0.00016712,5]
[335492480,1724271070418,-500.0,0.00016712,5]
[335492481,1724271070428,-2031.17,0.00016712,5]
[335492482,1724271070437,-1086.02,0.00016712,5]
[335492483,1724271070446,-500.0,0.00016712,5]
[335492484,1724271070456,-500.0,0.00016712,5]
[335492485,1724271070466,-500.0,0.00016712,5]
[335492486,1724271070475,-1406.4,0.00016712,5]
[335492487,1724271070484,-2109.32,0.00016712,5]
[335492488,1724271070494,-506.39,0.00016712,5]
[335492489,1724271070503,-500.0,0.00016712,5]
[335492490,1724271070512,-500.0,0.00016712,5]
[335492491,1724271070521,-500.0,0.00016712,5]
[335492492,1724271070531,-633.06,0.00016712,5]
[335492493,1724271070540,-2082.07,0.00016712,5]
[335492494,1724271070549,-500.0,0.00016712,5]
[335492495,1724271070558,-1272.91,0.00016712,5]
[335492496,1724271070567,-877.63,0.00016712,5]
[335492497,1724271070577,-2827.83,0.00016712,5]
[335492498,1724271070586,-679.05,0.00016712,5]
[335492499,1724271070597,-2900.23,0.00016712,5]
[335492500,1724271070606,-3837.38,0.00016712,5]
[335492501,1724271070615,-1312.2,0.00016712,5]
[335492502,1724271070623,-5651.96,0.00016712,5]
[335492503,1724271070633,-2385.71,0.00016712,5]
[335492504,1724271070642,-2073.03,0.00016712,5]
[335492505,1724271070651,-727.0,0.00016712,5]
[335492506,1724271070660,-4428.25,0.00016712,5]
[335492507,1724271070670,-4040.23,0.00016712,5]
[335492508,1724271070679,-500.0,0.00016712,5]
[335492509,1724271070688,-481.83325273,0.00016712,5]
[335492510,1724271070698,-1758.36,0.00016712,5]
[335492511,1724271070707,-8908.85,0.00016712,5]
[335492512,1724271070716,-2776.63,0.00016712,5]
[335492513,1724271070726,-1849.24,0.00016712,5]
[335492514,1724271070735,-1976.14,0.00016712,5]
[335492515,1724271070745,-4975.15,0.00016712,5]
[335492516,1724271070754,-2893.92,0.00016712,5]
[335492517,1724271070764,-3907.53,0.00016712,5]
[335492518,1724271070773,-652.92,0.00016712,5]
[335492519,1724271070783,-8204.23,0.00016712,5]
[335492520,1724271070791,-715.41,0.00016712,5]
[335492521,1724271070801,-804.61,0.00016712,5]
[335492522,1724271070810,-3869.94,0.00016712,5]
[335492523,1724271070819,-500.0,0.00016712,5]
[335492524,1724271070829,-560.54,0.00016712,5]
[335492525,1724271070838,-13097.07,0.00016712,5]
[335492526,1724271070849,-569.23,0.00016712,5]
[335492527,1724271070857,-500.0,0.00016712,5]
[335492528,1724271070867,-500.0,0.00016712,5]
[335492529,1724271070876,-5246.21,0.00016712,5]
[335492530,1724271070885,-508.22,0.00016712,5]
[335492531,1724271070894,-579.28,0.00016712,5]
[335492532,1724271070904,-770.64,0.00016712,5]
[335492533,1724271070913,-540.92,0.00016712,5]
[335492534,1724271070922,-1221.8,0.00016712,5]
[335492535,1724271070931,-592.34,0.00016712,5]
[335492536,1724271070941,-516.26,0.00016712,5]
[335492537,1724271070949,-500.0,0.00016712,5]
[335492538,1724271070959,-500.0,0.00016712,5]
[335492539,1724271070968,-1609.75,0.00016712,5]
[335492540,1724271070977,-1751.79,0.00016712,5]
[335492541,1724271070986,-500.0,0.00016712,5]
[335492542,1724271070996,-2912.27,0.00016712,5]
[335492543,1724271071005,-4271.33,0.00016712,5]
[335492544,1724271071015,-892.56,0.00016712,5]
[335492545,1724271071024,-1349.34,0.00016712,5]
[335492546,1724271071033,-1872.48,0.00016712,5]
[335492547,1724271071043,-1874.41,0.00016712,5]
[335492548,1724271071053,-843.59,0.00016712,5]
[335492549,1724271071064,-572.46,0.00016712,5]
[335492550,1724271071073,-500.0,0.00016712,5]
[335492551,1724271071083,-1812.21,0.00016712,5]
[335492552,1724271071093,-1297.86,0.00016712,5]
[335492553,1724271071102,-8174.27,0.00016712,5]
[335492554,1724271071111,-778.72,0.00016712,5]
[335492555,1724271071120,-574.93,0.00016712,5]
[335492556,1724271071130,-2107.46,0.00016712,5]
[335492557,1724271071140,-768.88,0.00016712,5]
[335492558,1724271071150,-2739.14,0.00016712,5]
[335492559,1724271071162,-23349.98,0.00016712,5]
[335492560,1724271071171,-1463.51,0.00016712,5]
[335492561,1724271071181,-500.0,0.00016712,5]
[335492562,1724271071190,-1339.48,0.00016712,5]
[335492563,1724271071199,-3622.41,0.00016712,5]
[335492564,1724271071209,-1649.78,0.00016712,5]
[335492565,1724271071219,-1449.44,0.00016712,5]
[335492566,1724271071228,-11751.7,0.00016712,5]